{"text_format":"1","workbook":"xlsx","n_sheets":2,"sheets":["InputSheet","Verify"],"not_rendered":{"charts":1,"images":0,"macros":1,"external_links":0,"defined_names":8,"comments":2,"pivot_tables":0},"unopened":[],"bounds":{"document_bytes":16777216,"sheet_cells":100000,"rows_first":2000,"rows_last":500,"rows_between":2000,"halvings":0,"cell_chars":16384,"cell_head_chars":4096},"cells_cut":0,"cells_raw":0,"read":"whole","date_system":"1900"}

{"sheet":"InputSheet","index":0,"n_rows":41,"n_cols":19,"rows_kept":41,"cut":false,"hidden":false,"merged":[]}
["Parameters","Value","Comment",null,null,null,"A-Matrix==>",null,null,"To -->"]
["nDim",4,"Dim. of problem=r+1 ",null,"ni","Pi(t)","Pi",null,null,0,1,2,3,4,5,6,7,8,9]
["MaxTime",50,"For time dep. solut.",null,5.8049334938914399E-7,5.3238472901284695E-6,5.8049336075782776E-6,"From",0,null,{"$f":"mu","v":0.1},0,0]
["Initial state",3,"Initial state",null,5.8798676036531106E-5,5.6797254364937544E-4,5.8216508477926254E-4,"¯",1,{"$f":"lambda","v":1E-3},null,{"$f":"mu","v":0.1},0]
["State2Follow",0,"State to plot",null,2.9691271483898163E-3,2.9003912582993507E-2,2.9109090566635132E-2,null,2,0,{"$f":"2*lambda","v":2E-3},null,{"$f":"mu","v":0.1}]
["lambda",1E-3,"Failure rate",null,2.9109087772667408E-3,0.97042322158813477,0.97030293941497803,null,3,0,0,{"$f":"3*lambda","v":3.0000000000000001E-3}]
["mu",0.1,"Repair rate",null,null,null,null,null,4]
[null,null,null,null,null,null,null,null,5]
[null,null,null,null,null,null,null,null,6]
[null,null,null,null,null,null,null,null,7]
[null,null,null,null,null,null,null,null,8]
[null,null,null,null,null,null,null,null,9]
[]
[null,null,null,null,null,null,"t","P0(t)"]
[null,null,null,null,null,null,0,0]
["Open VBA Module:",null,null,null,null,null,2,0]
["Windows PC",null,"Press <Alt> + F11 ",null,null,null,4,0]
["Mac",null,"Press <fn> + <alt> + F11 ",null,null,null,6,4.8000003971537808E-8]
[null,null,null,null,null,null,8,1.6262400492905726E-7]
[null,null,null,null,null,null,10,3.4516321534283634E-7]
["Modules:",null,null,null,null,null,12,5.8748520359586109E-7]
["mLib","Library of matrix functions",null,null,null,null,14,8.7709224771970185E-7]
["MarkovLib","Utility functions, Markov",null,null,null,null,16,1.2002383300568908E-6]
["WSlib","Utility functions, Worksheet R/W",null,null,null,null,18,1.543745838716859E-6]
["Buttons","Functions \"behind\" the buttons",null,null,null,null,20,1.8959668750540004E-6]
[null,null,null,null,null,null,22,2.2472004275186919E-6]
[null,null,null,null,null,null,24,2.589772748251562E-6]
[null,null,null,null,null,null,26,2.9179248031141469E-6]
[null,null,null,null,null,null,28,3.2275968351314077E-6]
[null,null,null,null,null,null,30,3.5161724554200191E-6]
[null,null,null,null,null,null,32,3.7822155718458816E-6]
[null,null,null,null,null,null,34,4.0252243707072921E-6]
[null,null,null,null,null,null,36,4.2454112190171145E-6]
[null,null,null,null,null,null,38,4.4435128074837849E-6]
[null,null,null,null,null,null,40,4.6206328079279047E-6]
[null,null,null,null,null,null,42,4.7781154535186943E-6]
[null,null,null,null,null,null,44,4.9174427658726927E-6]
[null,null,null,null,null,null,46,5.0401577027514577E-6]
[null,null,null,null,null,null,48,5.1478050409059506E-6]
[null,null,null,null,null,null,50,5.2418899940676056E-6]
[null,null,null,null,null,null,"Average",{"$f":"AVERAGE(H15:H40)","v":2.592361181650806E-6}]

{"sheet":"Verify","index":1,"n_rows":12,"n_cols":12,"rows_kept":12,"cut":false,"hidden":false,"merged":[]}
[null,null,"To -->"]
[null,null,0,1,2,3,4,5,6,7,8,9]
["From",0,{"$f":"ShowFormula(InputSheet!J3)","v":""},{"$f":"ShowFormula(InputSheet!K3)","v":"=mu"},{"$f":"ShowFormula(InputSheet!L3)","v":"0"},{"$f":"ShowFormula(InputSheet!M3)","v":"0"},{"$f":"ShowFormula(InputSheet!N3)","v":""},{"$f":"ShowFormula(InputSheet!O3)","v":""},{"$f":"ShowFormula(InputSheet!P3)","v":""},{"$f":"ShowFormula(InputSheet!Q3)","v":""},{"$f":"ShowFormula(InputSheet!R3)","v":""},{"$f":"ShowFormula(InputSheet!S3)","v":""}]
["¯",1,{"$f":"ShowFormula(InputSheet!J4)","v":"=lambda"},{"$f":"ShowFormula(InputSheet!K4)","v":""},{"$f":"ShowFormula(InputSheet!L4)","v":"=mu"},{"$f":"ShowFormula(InputSheet!M4)","v":"0"},{"$f":"ShowFormula(InputSheet!N4)","v":""},{"$f":"ShowFormula(InputSheet!O4)","v":""},{"$f":"ShowFormula(InputSheet!P4)","v":""},{"$f":"ShowFormula(InputSheet!Q4)","v":""},{"$f":"ShowFormula(InputSheet!R4)","v":""},{"$f":"ShowFormula(InputSheet!S4)","v":""}]
[null,2,{"$f":"ShowFormula(InputSheet!J5)","v":"0"},{"$f":"ShowFormula(InputSheet!K5)","v":"=2*lambda"},{"$f":"ShowFormula(InputSheet!L5)","v":""},{"$f":"ShowFormula(InputSheet!M5)","v":"=mu"},{"$f":"ShowFormula(InputSheet!N5)","v":""},{"$f":"ShowFormula(InputSheet!O5)","v":""},{"$f":"ShowFormula(InputSheet!P5)","v":""},{"$f":"ShowFormula(InputSheet!Q5)","v":""},{"$f":"ShowFormula(InputSheet!R5)","v":""},{"$f":"ShowFormula(InputSheet!S5)","v":""}]
[null,3,{"$f":"ShowFormula(InputSheet!J6)","v":"0"},{"$f":"ShowFormula(InputSheet!K6)","v":"0"},{"$f":"ShowFormula(InputSheet!L6)","v":"=3*lambda"},{"$f":"ShowFormula(InputSheet!M6)","v":""},{"$f":"ShowFormula(InputSheet!N6)","v":""},{"$f":"ShowFormula(InputSheet!O6)","v":""},{"$f":"ShowFormula(InputSheet!P6)","v":""},{"$f":"ShowFormula(InputSheet!Q6)","v":""},{"$f":"ShowFormula(InputSheet!R6)","v":""},{"$f":"ShowFormula(InputSheet!S6)","v":""}]
[null,4,{"$f":"ShowFormula(InputSheet!J7)","v":""},{"$f":"ShowFormula(InputSheet!K7)","v":""},{"$f":"ShowFormula(InputSheet!L7)","v":""},{"$f":"ShowFormula(InputSheet!M7)","v":""},{"$f":"ShowFormula(InputSheet!N7)","v":""},{"$f":"ShowFormula(InputSheet!O7)","v":""},{"$f":"ShowFormula(InputSheet!P7)","v":""},{"$f":"ShowFormula(InputSheet!Q7)","v":""},{"$f":"ShowFormula(InputSheet!R7)","v":""},{"$f":"ShowFormula(InputSheet!S7)","v":""}]
[null,5,{"$f":"ShowFormula(InputSheet!J8)","v":""},{"$f":"ShowFormula(InputSheet!K8)","v":""},{"$f":"ShowFormula(InputSheet!L8)","v":""},{"$f":"ShowFormula(InputSheet!M8)","v":""},{"$f":"ShowFormula(InputSheet!N8)","v":""},{"$f":"ShowFormula(InputSheet!O8)","v":""},{"$f":"ShowFormula(InputSheet!P8)","v":""},{"$f":"ShowFormula(InputSheet!Q8)","v":""},{"$f":"ShowFormula(InputSheet!R8)","v":""},{"$f":"ShowFormula(InputSheet!S8)","v":""}]
[null,6,{"$f":"ShowFormula(InputSheet!J9)","v":""},{"$f":"ShowFormula(InputSheet!K9)","v":""},{"$f":"ShowFormula(InputSheet!L9)","v":""},{"$f":"ShowFormula(InputSheet!M9)","v":""},{"$f":"ShowFormula(InputSheet!N9)","v":""},{"$f":"ShowFormula(InputSheet!O9)","v":""},{"$f":"ShowFormula(InputSheet!P9)","v":""},{"$f":"ShowFormula(InputSheet!Q9)","v":""},{"$f":"ShowFormula(InputSheet!R9)","v":""},{"$f":"ShowFormula(InputSheet!S9)","v":""}]
[null,7,{"$f":"ShowFormula(InputSheet!J10)","v":""},{"$f":"ShowFormula(InputSheet!K10)","v":""},{"$f":"ShowFormula(InputSheet!L10)","v":""},{"$f":"ShowFormula(InputSheet!M10)","v":""},{"$f":"ShowFormula(InputSheet!N10)","v":""},{"$f":"ShowFormula(InputSheet!O10)","v":""},{"$f":"ShowFormula(InputSheet!P10)","v":""},{"$f":"ShowFormula(InputSheet!Q10)","v":""},{"$f":"ShowFormula(InputSheet!R10)","v":""},{"$f":"ShowFormula(InputSheet!S10)","v":""}]
[null,8,{"$f":"ShowFormula(InputSheet!J11)","v":""},{"$f":"ShowFormula(InputSheet!K11)","v":""},{"$f":"ShowFormula(InputSheet!L11)","v":""},{"$f":"ShowFormula(InputSheet!M11)","v":""},{"$f":"ShowFormula(InputSheet!N11)","v":""},{"$f":"ShowFormula(InputSheet!O11)","v":""},{"$f":"ShowFormula(InputSheet!P11)","v":""},{"$f":"ShowFormula(InputSheet!Q11)","v":""},{"$f":"ShowFormula(InputSheet!R11)","v":""},{"$f":"ShowFormula(InputSheet!S11)","v":""}]
[null,9]